[Event "Belt Road Women 2019"]
[Site "Shaoxing"]
[Date "2019.07.10"]
[Round "3.16"]
[White "Zhang, Yuxuan"]
[Black "Yan, Tianqi"]
[Result "0-1"]
[ECO "B48"]
[WhiteElo "1987"]
[BlackElo "2034"]
[Annotator "NA"]
[PlyCount "82"]
[EventDate "2019.07.08"]
[EventType "swiss"]
[EventCountry "CHN"]
[SourceTitle "playchess.com"]
[Source "ChessBase"]
[SourceQuality "1"]
[TimeControl "5400+30"]

1. e4 {[%emt 0:00:00]} c5 {[%emt 0:00:00]} 2. Nf3 {[%emt 0:00:00]} Nc6 {[%emt 0:00:00]} 3. d4 {[%emt 0:00:00]} cxd4 {[%emt 0:00:00]} 4. Nxd4 {[%emt 0:00:00]} Qc7 {[%emt 0:00:00]} 5. Nc3 {[%emt 0:01:14]} e6 {[%emt 0:00:07]} 6. Be3 {[%emt 0:00:05]} a6 {[%emt 0:00:07]} 7. Qd2 {[%emt 0:00:10]} Nf6 {[%emt 0:00:48]} 8. O-O-O {[%emt 0:00:20]} Bb4 {[%emt 0:03:52]} 9. f3 {[%emt 0:00:34]} d5 {[%emt 0:05:45]} 10. Bg5 {[%emt 0:05:51]} dxe4 {[%emt 0:04:45]} 11. Nxc6 {[%emt 0:01:12]} bxc6 {[%emt 0:00:10]} 12. Bxf6 {[%emt 0:00:38]} gxf6 {[%emt 0:00:08]} 13. Qd4 {[%emt 0:00:33]} Bxc3 {[%emt 0:04:25]} 14. Qxc3 {[%emt 0:00:32]} Qf4+ {[%emt 0:06:56]} 15. Kb1 {[%emt 0:00:11]} Bb7 {[%emt 0:01:51]} 16. fxe4 {[%emt 0:07:18]} Qe5 {[%emt 0:02:27]} 17. Qb4 {[%emt 0:02:47]} Rb8 {[%emt 0:01:04]} 18. b3 {[%emt 0:06:41]} c5 {[%emt 0:04:22]} 19. Qa4+ {[%emt 0:00:18]} Kf8 {[%emt 0:00:14]} 20. Rd7 {[%emt 0:04:25]} Qxe4 {[%emt 0:04:28]} 21. Qxe4 {[%emt 0:00:40]} Bxe4 {[%emt 0:00:04]} 22. Bxa6 {[%emt 0:00:14]} Rg8 {[%emt 0:03:48]} 23. Bf1 {[%emt 0:02:39]} f5 {[%emt 0:06:13]} 24. Rc7 {[%emt 0:07:50]} f4 {[%emt 0:02:28]} 25. Bd3 {[%emt 0:07:17]} Bxg2 {[%emt 0:03:44]} 26. Rg1 {[%emt 0:03:46]} Rd8 {[%emt 0:04:57]} 27. Rxc5 {[%emt 0:03:43]} f3 {[%emt 0:01:19]} 28. Bc4 {[%emt 0:00:41]} f2 {[%emt 0:08:13]} 29. Rc1 {[%emt 0:00:09]} Bf3 {[%emt 0:01:03]} 30. Bf1 {[%emt 0:01:06]} Rg1 {[%emt 0:00:56]} 31. Kb2 {[%emt 0:04:16]} Bd1 {[%emt 0:01:01]} 32. Bc4 {[%emt 0:00:19]} f1=Q {[%emt 0:00:42]} 33. Bxf1 {[%emt 0:00:05]} Rxf1 {[%emt 0:00:04]} 34. a4 {[%emt 0:00:08]} f5 {[%emt 0:02:55]} 35. a5 {[%emt 0:02:53]} f4 {[%emt 0:01:52]} 36. a6 {[%emt 0:02:22]} Ra8 {[%emt 0:01:12]} 37. Rc4 {[%emt 0:01:24]} e5 {[%emt 0:03:02]} 38. Re4 {[%emt 0:00:52]} Rxa6 {[%emt 0:01:16]} 39. Rxe5 {[%emt 0:00:04]} Rf6 {[%emt 0:00:14]} 40. Kc3 {[%emt 0:00:43]} f3 {[%emt 0:00:20]} 41. Kd2 {[%emt 0:00:47]} f2 {[%emt 0:00:30]} 0-1

[Event "Belt Road Women 2019"]
[Site "Shaoxing"]
[Date "2019.07.10"]
[Round "3.17"]
[White "Peng, Tianlu"]
[Black "Bai, Xue"]
[Result "0-1"]
[ECO "A14"]
[WhiteElo "1901"]
[BlackElo "2029"]
[Annotator "NA"]
[PlyCount "86"]
[EventDate "2019.07.08"]
[EventType "swiss"]
[EventCountry "CHN"]
[SourceTitle "playchess.com"]
[Source "ChessBase"]
[SourceQuality "1"]
[TimeControl "5400+30"]

1. Nf3 {[%emt 0:00:00]} Nf6 {[%emt 0:00:00]} 2. g3 {[%emt 0:00:02]} e6 {[%emt 0:00:00]} 3. Bg2 {[%emt 0:00:11]} d5 {[%emt 0:00:00]} 4. c4 {[%emt 0:00:10]} b6 {[%emt 0:00:52]} 5. O-O {[%emt 0:00:23]} Bb7 {[%emt 0:00:17]} 6. b3 {[%emt 0:00:23]} Be7 {[%emt 0:00:10]} 7. Bb2 {[%emt 0:00:20]} O-O {[%emt 0:02:08]} 8. e3 {[%emt 0:00:42]} Nbd7 {[%emt 0:02:33]} 9. cxd5 {[%emt 0:02:15]} exd5 {[%emt 0:00:46]} 10. d4 {[%emt 0:01:10]} Re8 {[%emt 0:04:28]} 11. Nc3 {[%emt 0:01:07]} Bd6 {[%emt 0:03:53]} 12. Rc1 {[%emt 0:02:01]} a6 {[%emt 0:03:23]} 13. Ne2 {[%emt 0:04:58]} Rc8 {[%emt 0:08:28]} 14. Nf4 {[%emt 0:02:11]} Qe7 {[%emt 0:09:29]} 15. Rc2 {[%emt 0:05:07]} Ne4 {[%emt 0:03:55]} 16. Bh3 {[%emt 0:09:30]} Rcd8 {[%emt 0:05:04]} 17. Qa1 {[%emt 0:02:53]} Ng5 {[%emt 0:01:58]} 18. Bg2 {[%emt 0:01:46]} Nxf3+ {[%emt 0:03:13]} 19. Bxf3 {[%emt 0:00:12]} Nf6 {[%emt 0:00:08]} 20. Qc1 {[%emt 0:02:53]} Ne4 {[%emt 0:01:40]} 21. Nd3 {[%emt 0:03:27]} g6 {[%emt 0:03:22]} 22. b4 {[%emt 0:05:42]} h5 {[%emt 0:04:02]} 23. Nc5 {[%emt 0:06:16]} bxc5 {[%emt 0:01:06]} 24. bxc5 {[%emt 0:00:11]} Bxg3 {[%emt 0:00:16]} 25. fxg3 {[%emt 0:05:45]} Bc6 {[%emt 0:01:43]} 26. Re1 {[%emt 0:03:52]} Qg5 {[%emt 0:03:32]} 27. Rg2 {[%emt 0:01:12]} Qf6 {[%emt 0:04:37]} 28. Qd1 {[%emt 0:02:05]} Ng5 {[%emt 0:01:22]} 29. Rf1 {[%emt 0:01:41]} Rxe3 {[%emt 0:08:20]} 30. Bxh5 {[%emt 0:06:50]} Qe7 {[%emt 0:00:20]} 31. Bg4 {[%emt 0:01:39]} Bb5 {[%emt 0:00:56]} 32. Rgf2 {[%emt 0:10:15]} Bxf1 {[%emt 0:01:39]} 33. Rxf1 {[%emt 0:00:05]} f5 {[%emt 0:01:44]} 34. Bxf5 {[%emt 0:08:16]} gxf5 {[%emt 0:00:12]} 35. Qh5 {[%emt 0:05:00]} Re1 {[%emt 0:07:08]} 36. Qg6+ {[%emt 0:01:55]} Kh8 {[%emt 0:01:53]} 37. Qh6+ {[%emt 0:00:33]} Nh7 {[%emt 0:01:11]} 38. Bc1 {[%emt 0:01:01]} Qe2 {[%emt 0:00:32]} 39. Rxe1 {[%emt 0:00:31]} Qxe1+ {[%emt 0:00:02]} 40. Kg2 {[%emt 0:00:11]} Re8 {[%emt 0:00:33]} 41. Bf4 {[%emt 0:00:43]} Re2+ {[%emt 0:00:16]} 42. Kh3 {[%emt 0:00:14]} Qf1+ {[%emt 0:00:08]} 43. Kh4 {[%emt 0:00:32]} Rxh2# {[%emt 0:00:06]} 0-1

[Event "Belt Road Women 2019"]
[Site "Shaoxing"]
[Date "2019.07.11"]
[Round "4.2"]
[White "Munguntuul, Batkhuyag"]
[Black "Zhu, Jiner"]
[Result "1/2-1/2"]
[ECO "B84"]
[WhiteElo "2412"]
[BlackElo "2454"]
[Annotator "RC"]
[PlyCount "105"]
[EventDate "2019.07.08"]
[EventType "swiss"]
[EventCountry "CHN"]
[TimeControl "5400+30"]

1. e4 {[%emt 0:00:00]} c5 {[%emt 0:00:00]} 2. Nf3 {[%emt 0:00:24]} d6 {[%emt 0:00:10]} 3. d4 {[%emt 0:00:04]} cxd4 {[%emt 0:00:05]} 4. Nxd4 {[%emt 0:00:08]} Nf6 {[%emt 0:00:05]} 5. Nc3 {[%emt 0:00:02]} a6 {[%emt 0:00:06]} 6. Be2 {[%emt 0:00:07]} e6 {[%emt 0:00:06]} 7. Be3 {[%emt 0:00:08]} Be7 {[%emt 0:00:38]} 8. Qd2 {[%emt 0:01:49]} b5 {[%emt 0:01:55]} 9. a3 {[%emt 0:03:20]} Bb7 {[%emt 0:00:12]} 10. f3 {[%emt 0:00:07]} Nbd7 {[%emt 0:02:10]} 11. g4 {[%emt 0:10:56]} Nb6 {[%emt 0:04:07]} 12. O-O-O {[%emt 0:05:23]} Rc8 {[%emt 0:00:50]} 13. h4 {[%emt 0:07:13]} Nfd7 {[%emt 0:04:18]} 14. Bg5 {[%emt 0:05:00]} Ne5 {[%emt 0:06:55]} 15. Bxe7 {[%emt 0:04:59]} Qxe7 {[%emt 0:00:08]} 16. f4 {[%emt 0:02:49]} Nec4 {[%emt 0:02:21]} 17. Bxc4 {[%emt 0:00:23]} Nxc4 {[%emt 0:03:52]} 18. Qd3 {[%emt 0:00:28]} Qc7 {[%emt 0:03:14]} 19. f5 {[%emt 0:08:08]} e5 {[%emt 0:00:57]} 20. Nb3 {[%emt 0:18:58]} Nxa3 {[%emt 0:15:10]} 21. f6 {[%emt 0:06:34]} gxf6 {[%emt 0:02:44]} 22. Qxd6 {[%emt 0:00:48]} Qxd6 {[%emt 0:00:27]} 23. Rxd6 {[%emt 0:00:02]} Nxc2 {[%emt 0:01:43]} 24. Na5 {[%emt 0:01:37]} Ba8 {[%emt 0:00:19]} 25. Rxf6 {[%emt 0:01:43]} b4 {[%emt 0:10:56]} 26. Nd5 {[%emt 0:00:50]} Ne3+ {[%emt 0:03:38]} 27. Kd2 {[%emt 0:06:15]} Nxd5 {[%emt 0:00:17]} 28. exd5 {[%emt 0:00:02]} Bxd5 {[%emt 0:00:10]} 29. Re1 {[%emt 0:00:05]} Be6 {[%emt 0:01:12]} 30. Rxe5 {[%emt 0:00:14]} Ke7 {[%emt 0:00:07]} 31. Rf4 {[%emt 0:00:34]} Rhd8+ {[%emt 0:02:35]} 32. Ke3 {[%emt 0:01:23]} Rd1 {[%emt 0:03:32]} 33. Ree4 {[%emt 0:03:56]} Ra1 {[%emt 0:05:39]} 34. Nb3 {[%emt 0:01:48]} Rb1 {[%emt 0:04:33]} 35. Rxb4 {[%emt 0:03:03]} Rxb2 {[%emt 0:00:07]} 36. Nd2 {[%emt 0:03:57]} Rc3+ {[%emt 0:00:26]} 37. Ke2 {[%emt 0:00:01]} Rxb4 {[%emt 0:07:00]} 38. Rxb4 {[%emt 0:00:02]} Rg3 {[%emt 0:00:08]} 39. g5 {[%emt 0:01:38]} Rg4 {[%emt 0:00:15]} 40. Rb7+ {[%emt 0:01:44]} Kf8 {[%emt 0:00:06]} 41. Ra7 {[%emt 0:00:35]} Rxh4 {[%emt 0:02:33]} 42. Rxa6 {[%emt 0:00:09]} Rh5 {[%emt 0:00:22]} 43. Ra5 {[%emt 0:00:16]} Kg7 {[%emt 0:00:05]} 44. Kf2 {[%emt 0:01:04]} Kg6 {[%emt 0:03:05]} 45. Nf3 {[%emt 0:00:12]} Rh1 {[%emt 0:00:34]} 46. Kg3 {[%emt 0:01:03]} Rd1 {[%emt 0:00:19]} 47. Nh4+ {[%emt 0:00:57]} Kg7 {[%emt 0:00:07]} 48. Nf5+ {[%emt 0:00:35]} Bxf5 {[%emt 0:00:37]} 49. Rxf5 {[%emt 0:00:02]} Kg6 {[%emt 0:00:46]} 50. Rf6+ {[%emt 0:00:10]} Kg7 {[%emt 0:00:09]} 51. Rf5 {[%emt 0:00:04]} Kg6 {[%emt 0:00:06]} 52. Rf6+ {[%emt 0:00:02]} Kxg5 {[%emt 0:00:17]} 53. Rxf7 {[%emt 0:00:02]} 1/2-1/2

[Event "Belt Road Women 2019"]
[Site "Shaoxing"]
[Date "2019.07.11"]
[Round "4.3"]
[White "Girya, Olga"]
[Black "Kosteniuk, Alexandra"]
[Result "1/2-1/2"]
[ECO "D10"]
[WhiteElo "2457"]
[BlackElo "2517"]
[Annotator "ChessBase"]
[PlyCount "137"]
[EventDate "2019.07.08"]
[EventType "swiss"]
[EventCountry "CHN"]
[SourceTitle "playchess.com"]
[Source "ChessBase"]
[SourceQuality "1"]
[TimeControl "5400+30"]

1. d4 {[%emt 0:00:00]} d5 {[%emt 0:00:00]} 2. c4 {[%emt 0:00:27]} c6 {[%emt 0:00:00]} 3. Nc3 {[%emt 0:05:42]} dxc4 {[%emt 0:00:06]} 4. e3 {[%emt 0:05:17]} b5 {[%emt 0:00:37]} 5. a4 {[%emt 0:00:07]} b4 {[%emt 0:00:18]} 6. Ne4 {[%emt 0:00:19]} Qd5 {[%emt 0:00:25]} 7. Nd2 {[%emt 0:01:32]} c3 {[%emt 0:00:34]} 8. bxc3 bxc3 {[%emt 0:00:03]} 9. Nb1 {[%emt 0:00:16]} Qa5 {[%emt 0:00:53]} 10. Qc2 {[%emt 0:05:02]} Na6 {[%emt 0:00:44]} 11. Qxc3 {[%emt 0:03:35]} Nb4 {[%emt 0:00:20]} 12. Bd2 {[%emt 0:02:43]} e6 {[%emt 0:00:22]} 13. Nf3 {[%emt 0:03:28]} Nf6 {[%emt 0:00:21]} 14. Bc4 {[%emt 0:00:39]} Be7 {[%emt 0:01:23]} 15. O-O {[%emt 0:00:57]} O-O {[%emt 0:00:05]} 16. Rc1 {[%emt 0:03:26]} Bb7 {[%emt 0:12:45]} 17. Qb3 {[%emt 0:02:56]} c5 {[%emt 0:03:21]} 18. dxc5 {[%emt 0:12:13]} Qxc5 {[%emt 0:09:50]} 19. Be2 {[%emt 0:18:59]} Qd6 {[%emt 0:03:41]} 20. Na3 {[%emt 0:02:24]} a5 {[%emt 0:03:39]} 21. Nb5 {[%emt 0:02:23]} Qd8 {[%emt 0:15:32]} 22. Bc3 {[%emt 0:04:58]} Ne4 {[%emt 0:03:02]} 23. Bd4 {[%emt 0:02:00]} Bf6 {[%emt 0:02:02]} 24. Qb2 {[%emt 0:02:39]} Bxd4 {[%emt 0:02:30]} 25. Qxd4 {[%emt 0:00:03]} Rc8 {[%emt 0:01:04]} 26. Qxd8 {[%emt 0:02:20]} Rfxd8 {[%emt 0:00:13]} 27. Nfd4 {[%emt 0:01:01]} Bd5 {[%emt 0:11:01]} 28. f3 {[%emt 0:01:23]} Nd2 {[%emt 0:00:14]} 29. Rxc8 {[%emt 0:03:01]} Rxc8 {[%emt 0:00:03]} 30. Rd1 {[%emt 0:01:55]} Nb3 {[%emt 0:01:40]} 31. e4 {[%emt 0:02:42]} Nxd4 {[%emt 0:00:10]} 32. Rxd4 {[%emt 0:01:49]} Bb3 {[%emt 0:00:32]} 33. Bd1 {[%emt 0:03:34]} e5 {[%emt 0:01:56]} 34. Rd6 {[%emt 0:00:50]} Be6 {[%emt 0:09:51]} 35. Nc7 {[%emt 0:01:11]} Ba2 {[%emt 0:00:11]} 36. Be2 {[%emt 0:01:09]} Kf8 {[%emt 0:01:07]} 37. Rd7 {[%emt 0:01:30]} Nc6 {[%emt 0:00:06]} 38. Bb5 {[%emt 0:01:38]} Nd4 {[%emt 0:01:40]} 39. Kf2 {[%emt 0:01:09]} Bb3 {[%emt 0:00:14]} 40. f4 {[%emt 0:00:51]} Nxb5 {[%emt 0:01:34]} 41. axb5 {[%emt 0:00:33]} a4 {[%emt 0:00:25]} 42. b6 {[%emt 0:01:14]} Rb8 {[%emt 0:01:47]} 43. fxe5 {[%emt 0:00:51]} Rxb6 {[%emt 0:04:35]} 44. Rd8+ {[%emt 0:00:11]} Ke7 {[%emt 0:00:04]} 45. Ra8 {[%emt 0:00:02]} Kd7 {[%emt 0:02:11]} 46. Nd5 {[%emt 0:00:23]} Re6 {[%emt 0:00:35]} 47. Nc3 {[%emt 0:01:20]} Rxe5 {[%emt 0:02:07]} 48. Nxa4 {[%emt 0:00:05]} Bc2 {[%emt 0:00:29]} 49. Ra7+ {[%emt 0:00:11]} Ke8 {[%emt 0:00:27]} 50. Ra8+ {[%emt 0:00:44]} Ke7 {[%emt 0:00:14]} 51. Ra7+ {[%emt 0:00:11]} Kf6 {[%emt 0:00:47]} 52. Nc3 {[%emt 0:01:08]} Bxe4 {[%emt 0:00:23]} 53. Nxe4+ {[%emt 0:00:06]} Rxe4 {[%emt 0:00:03]} 54. Kf3 {[%emt 0:00:07]} Re6 {[%emt 0:00:17]} 55. g4 {[%emt 0:00:56]} g5 {[%emt 0:00:18]} 56. Ra5 {[%emt 0:00:21]} Rb6 {[%emt 0:00:12]} 57. h3 {[%emt 0:00:52]} Kg6 {[%emt 0:00:07]} 58. Ra8 {[%emt 0:00:26]} Rb3+ {[%emt 0:01:01]} 59. Kg2 {[%emt 0:00:02]} Rb4 {[%emt 0:00:07]} 60. Ra6+ {[%emt 0:01:02]} f6 {[%emt 0:00:05]} 61. Kg3 {[%emt 0:00:11]} Rb1 {[%emt 0:01:44]} 62. Rc6 {[%emt 0:00:36]} Rf1 {[%emt 0:00:05]} 63. Kg2 {[%emt 0:00:24]} Rf4 {[%emt 0:00:04]} 64. Kg3 {[%emt 0:00:14]} h5 {[%emt 0:00:05]} 65. gxh5+ {[%emt 0:00:23]} Kxh5 {[%emt 0:00:02]} 66. h4 {[%emt 0:00:49]} Rg4+ {[%emt 0:02:07]} 67. Kf3 {[%emt 0:00:10]} gxh4 {[%emt 0:02:19]} 68. Rxf6 {[%emt 0:00:04]} Rg8 {[%emt 0:00:07]} 69. Rf5+ {[%emt 0:00:40]} 1/2-1/2

[Event "Belt Road Women 2019"]
[Site "Shaoxing"]
[Date "2019.07.11"]
[Round "4.5"]
[White "Ushenina, Anna"]
[Black "Tan, Zhongyi"]
[Result "1/2-1/2"]
[ECO "E05"]
[WhiteElo "2448"]
[BlackElo "2511"]
[Annotator "ChessBase"]
[PlyCount "150"]
[EventDate "2019.07.08"]
[EventType "swiss"]
[EventCountry "CHN"]
[SourceTitle "playchess.com"]
[Source "ChessBase"]
[SourceQuality "1"]
[TimeControl "5400+30"]

1. d4 {[%emt 0:00:00]} Nf6 {[%emt 0:00:33]} 2. c4 {[%emt 0:01:43]} e6 {[%emt 0:00:00]} 3. Nf3 {[%emt 0:00:08]} d5 {[%emt 0:00:00]} 4. g3 {[%emt 0:00:05]} Be7 {[%emt 0:00:00]} 5. Bg2 {[%emt 0:00:14]} O-O {[%emt 0:00:06]} 6. O-O {[%emt 0:00:16]} dxc4 {[%emt 0:00:04]} 7. Qa4 {[%emt 0:00:08]} a6 {[%emt 0:02:34]} 8. Qxc4 {[%emt 0:00:05]} b5 {[%emt 0:00:10]} 9. Qc2 {[%emt 0:00:12]} Bb7 {[%emt 0:00:07]} 10. Bd2 {[%emt 0:00:09]} Be4 {[%emt 0:00:13]} 11. Qc1 {[%emt 0:01:08]} c6 {[%emt 0:00:11]} 12. Rd1 {[%emt 0:14:25]} Bxf3 {[%emt 0:10:50]} 13. Bxf3 {[%emt 0:00:10]} Qxd4 {[%emt 0:00:28]} 14. Bc3 {[%emt 0:18:20]} Qb6 {[%emt 0:02:38]} 15. Bd4 {[%emt 0:01:18]} Qc7 {[%emt 0:02:32]} 16. a4 {[%emt 0:09:19]} e5 {[%emt 0:06:17]} 17. Be3 {[%emt 0:05:22]} e4 {[%emt 0:00:24]} 18. Bg2 {[%emt 0:00:05]} Nbd7 {[%emt 0:00:22]} 19. Nd2 {[%emt 0:10:15]} Qe5 {[%emt 0:00:14]} 20. Nxe4 {[%emt 0:03:17]} Nxe4 {[%emt 0:06:10]} 21. Rxd7 {[%emt 0:00:04]} Bf6 {[%emt 0:10:39]} 22. Rb1 {[%emt 0:09:52]} Qe6 {[%emt 0:02:37]} 23. Rc7 {[%emt 0:00:58]} Rfc8 {[%emt 0:01:05]} 24. Qxc6 {[%emt 0:03:28]} Qxc6 {[%emt 0:02:23]} 25. Rxc6 {[%emt 0:00:01]} Rxc6 {[%emt 0:00:11]} 26. Bxe4 {[%emt 0:00:02]} Rac8 {[%emt 0:00:10]} 27. Bxc6 {[%emt 0:00:04]} Rxc6 {[%emt 0:00:03]} 28. axb5 {[%emt 0:00:10]} axb5 {[%emt 0:00:05]} 29. Ra1 {[%emt 0:02:51]} h6 {[%emt 0:01:56]} 30. Ra8+ {[%emt 0:00:16]} Kh7 {[%emt 0:00:05]} 31. Rb8 {[%emt 0:00:26]} Bxb2 {[%emt 0:00:38]} 32. Rxb5 {[%emt 0:00:04]} Bf6 {[%emt 0:01:10]} 33. Rb7 {[%emt 0:00:06]} Kg8 {[%emt 0:00:53]} 34. Kg2 {[%emt 0:00:17]} g5 {[%emt 0:00:44]} 35. Rb6 {[%emt 0:00:17]} Rxb6 {[%emt 0:00:13]} 36. Bxb6 {[%emt 0:00:01]} Kg7 {[%emt 0:01:48]} 37. Kf3 {[%emt 0:00:19]} Kg6 {[%emt 0:02:53]} 38. Ke4 {[%emt 0:01:44]} h5 {[%emt 0:06:22]} 39. h3 {[%emt 0:00:22]} Bb2 {[%emt 0:00:48]} 40. Bd4 {[%emt 0:01:45]} Bc1 {[%emt 0:02:52]} 41. f3 {[%emt 0:01:55]} Bd2 {[%emt 0:01:09]} 42. Bf2 {[%emt 0:04:45]} Bc1 {[%emt 0:05:52]} 43. Ke5 {[%emt 0:01:15]} Bd2 {[%emt 0:01:33]} 44. e4 {[%emt 0:01:44]} Bc3+ {[%emt 0:00:13]} 45. Kd5 {[%emt 0:00:27]} Bd2 {[%emt 0:00:08]} 46. Kd4 {[%emt 0:01:41]} Ba5 {[%emt 0:00:11]} 47. Kd5 {[%emt 0:04:27]} Bc7 {[%emt 0:01:59]} 48. Be1 {[%emt 0:03:02]} Bb8 {[%emt 0:00:07]} 49. Kc6 {[%emt 0:02:22]} Be5 {[%emt 0:00:07]} 50. Kd5 {[%emt 0:01:25]} Bb8 {[%emt 0:00:09]} 51. Kd4 {[%emt 0:00:40]} Bc7 {[%emt 0:00:09]} 52. Ke3 {[%emt 0:00:04]} Bb6+ {[%emt 0:00:13]} 53. Ke2 {[%emt 0:00:06]} Bc7 {[%emt 0:00:10]} 54. Kf2 {[%emt 0:00:03]} Bb6+ {[%emt 0:02:03]} 55. Kg2 {[%emt 0:00:06]} Be3 {[%emt 0:01:44]} 56. Kf1 {[%emt 0:00:18]} Bb6 {[%emt 0:01:13]} 57. Bd2 {[%emt 0:00:59]} Bc7 {[%emt 0:00:20]} 58. Kf2 {[%emt 0:00:08]} f5 {[%emt 0:05:31]} 59. g4 {[%emt 0:01:13]} hxg4 {[%emt 0:00:06]} 60. hxg4 {[%emt 0:00:04]} fxg4 {[%emt 0:00:58]} 61. fxg4 {[%emt 0:00:02]} Bd8 {[%emt 0:00:08]} 62. Ke2 {[%emt 0:02:27]} Kf7 {[%emt 0:00:07]} 63. Kd3 {[%emt 0:00:20]} Ke6 {[%emt 0:00:05]} 64. Bc3 {[%emt 0:00:05]} Be7 {[%emt 0:00:04]} 65. Kc4 {[%emt 0:00:09]} Bd8 {[%emt 0:00:05]} 66. Kc5 {[%emt 0:00:15]} Be7+ {[%emt 0:00:17]} 67. Kc6 {[%emt 0:00:25]} Bd8 {[%emt 0:00:04]} 68. Bd4 {[%emt 0:00:31]} Ba5 {[%emt 0:00:17]} 69. Kb7 {[%emt 0:00:38]} Bd8 {[%emt 0:00:06]} 70. Kc8 {[%emt 0:00:14]} Bf6 {[%emt 0:00:43]} 71. Be3 {[%emt 0:00:31]} Ke5 {[%emt 0:00:10]} 72. Bxg5 {[%emt 0:00:11]} Bxg5 {[%emt 0:00:07]} 73. Kd7 {[%emt 0:00:02]} Kxe4 {[%emt 0:00:10]} 74. Ke6 {[%emt 0:00:02]} Kf4 {[%emt 0:00:06]} 75. Kd5 {[%emt 0:00:02]} Kxg4 {[%emt 0:00:06]} 1/2-1/2

[Event "Belt Road Women 2019"]
[Site "Shaoxing"]
[Date "2019.07.11"]
[Round "4.6"]
[White "Lei, Tingjie"]
[Black "Guo, Qi"]
[Result "1/2-1/2"]
[ECO "C42"]
[WhiteElo "2505"]
[BlackElo "2375"]
[Annotator "RC"]
[PlyCount "64"]
[EventDate "2019.07.08"]
[EventType "swiss"]
[EventCountry "CHN"]
[TimeControl "5400+30"]

1. e4 {[%emt 0:00:00]} e5 {[%emt 0:00:00]} 2. Nf3 {[%emt 0:00:00]} Nf6 {[%emt 0:00:00]} 3. Nxe5 {[%emt 0:00:31]} d6 {[%emt 0:00:00]} 4. Nf3 {[%emt 0:00:36]} Nxe4 {[%emt 0:00:04]} 5. d4 {[%emt 0:00:11]} d5 {[%emt 0:00:10]} 6. Bd3 {[%emt 0:00:24]} Bf5 {[%emt 0:01:34]} 7. O-O {[%emt 0:00:44]} Be7 {[%emt 0:00:05]} 8. Nc3 {[%emt 0:08:37]} O-O {[%emt 0:03:14]} 9. Ne5 {[%emt 0:01:51]} Nxc3 {[%emt 0:01:54]} 10. bxc3 {[%emt 0:00:07]} Bxd3 {[%emt 0:00:16]} 11. cxd3 {[%emt 0:00:06]} Nc6 {[%emt 0:02:53]} 12. Rb1 {[%emt 0:10:02]} Bd6 {[%emt 0:07:18]} 13. Nxc6 {[%emt 0:08:01]} bxc6 {[%emt 0:00:15]} 14. Qa4 {[%emt 0:00:21]} c5 {[%emt 0:04:06]} 15. dxc5 {[%emt 0:04:18]} Bxc5 {[%emt 0:00:59]} 16. d4 {[%emt 0:00:29]} Bb6 {[%emt 0:01:24]} 17. Ba3 {[%emt 0:03:17]} Re8 {[%emt 0:01:59]} 18. Rfe1 {[%emt 0:00:42]} Re6 {[%emt 0:05:58]} 19. Rxe6 {[%emt 0:09:32]} fxe6 {[%emt 0:00:11]} 20. Re1 {[%emt 0:00:41]} Qe8 {[%emt 0:00:06]} 21. Qd1 {[%emt 0:00:30]} Qf7 {[%emt 0:09:18]} 22. g3 {[%emt 0:04:16]} Rc8 {[%emt 0:04:53]} 23. Qg4 {[%emt 0:13:04]} Re8 {[%emt 0:00:45]} 24. Re5 {[%emt 0:04:04]} c6 {[%emt 0:01:40]} 25. Qe2 {[%emt 0:00:06]} Qd7 {[%emt 0:03:25]} 26. f4 {[%emt 0:03:54]} g6 {[%emt 0:00:43]} 27. h4 {[%emt 0:02:18]} Bc7 {[%emt 0:00:06]} 28. Re3 {[%emt 0:01:05]} h5 {[%emt 0:04:22]} 29. Qc2 {[%emt 0:05:20]} Kf7 {[%emt 0:00:30]} 30. Qe2 {[%emt 0:01:49]} Kg8 {[%emt 0:03:03]} 31. Kg2 {[%emt 0:02:09]} Kg7 {[%emt 0:00:59]} 32. Kg1 {[%emt 0:02:53]} Kg8 {[%emt 0:00:07]} 1/2-1/2

[Event "Belt Road Women 2019"]
[Site "Shaoxing"]
[Date "2019.07.11"]
[Round "4.8"]
[White "Batsiashvili, Nino"]
[Black "Zhang, Lanlin"]
[Result "0-1"]
[ECO "B04"]
[WhiteElo "2433"]
[BlackElo "2195"]
[Annotator "NA"]
[PlyCount "99"]
[EventDate "2019.07.08"]
[EventType "swiss"]
[EventCountry "CHN"]
[SourceTitle "playchess.com"]
[Source "ChessBase"]
[SourceQuality "1"]
[TimeControl "5400+30"]

1. c4 {[%emt 0:00:00]} e5 {[%emt 0:00:32]} 2. Nc3 {[%emt 0:00:00]} c5 {[%emt 0:00:20]} 3. e3 {[%emt 0:02:33]} Nc6 {[%emt 0:00:19]} 4. Nf3 {[%emt 0:00:09]} d6 {[%emt 0:04:03]} 5. d4 {[%emt 0:02:53]} cxd4 {[%emt 0:00:25]} 6. exd4 {[%emt 0:00:13]} Bg4 {[%emt 0:00:04]} 7. Be2 {[%emt 0:02:19]} Nf6 {[%emt 0:08:12]} 8. Be3 {[%emt 0:05:58]} Be7 {[%emt 0:02:56]} 9. O-O {[%emt 0:04:29]} O-O {[%emt 0:00:33]} 10. d5 {[%emt 0:04:50]} Na5 {[%emt 0:04:45]} 11. Nd2 {[%emt 0:11:06]} Bxe2 {[%emt 0:03:42]} 12. Qxe2 {[%emt 0:01:12]} b6 {[%emt 0:00:06]} 13. f4 {[%emt 0:11:35]} Nd7 {[%emt 0:04:51]} 14. f5 {[%emt 0:01:40]} Bg5 {[%emt 0:06:01]} 15. Bxg5 {[%emt 0:01:32]} Qxg5 {[%emt 0:00:06]} 16. Nce4 {[%emt 0:01:22]} Qe7 {[%emt 0:00:07]} 17. f6 {[%emt 0:01:16]} gxf6 {[%emt 0:15:50]} 18. Ng3 {[%emt 0:03:53]} Kh8 {[%emt 0:01:12]} 19. Nf5 {[%emt 0:00:11]} Qd8 {[%emt 0:00:03]} 20. Rf3 {[%emt 0:02:24]} Rg8 {[%emt 0:00:58]} 21. Nxd6 {[%emt 0:01:15]} Qf8 {[%emt 0:00:43]} 22. N2e4 {[%emt 0:00:42]} Rb8 {[%emt 0:04:14]} 23. Raf1 {[%emt 0:02:27]} Rg6 {[%emt 0:00:49]} 24. b4 {[%emt 0:01:29]} Nb7 {[%emt 0:00:05]} 25. Nxb7 {[%emt 0:00:11]} Rxb7 {[%emt 0:00:03]} 26. d6 {[%emt 0:00:15]} a5 {[%emt 0:02:59]} 27. a3 {[%emt 0:06:39]} axb4 {[%emt 0:00:18]} 28. axb4 {[%emt 0:00:00]} Ra7 {[%emt 0:00:06]} 29. Rg3 {[%emt 0:12:07]} Kg7 {[%emt 0:03:59]} 30. Qf3 {[%emt 0:02:20]} Qa8 {[%emt 0:00:34]} 31. h4 {[%emt 0:05:16]} Ra1 {[%emt 0:04:55]} 32. h5 {[%emt 0:00:44]} Rxf1+ {[%emt 0:00:06]} 33. Qxf1 {[%emt 0:00:11]} Qxe4 {[%emt 0:10:56]} 34. hxg6 {[%emt 0:00:02]} hxg6 {[%emt 0:00:06]} 35. Kh2 {[%emt 0:00:35]} f5 {[%emt 0:01:00]} 36. Qd3 {[%emt 0:00:22]} Qf4 {[%emt 0:01:00]} 37. Qc3 {[%emt 0:08:25]} Nf6 {[%emt 0:01:18]} 38. Qe1 {[%emt 0:02:29]} Qh4+ {[%emt 0:02:48]} 39. Kg1 {[%emt 0:00:53]} Qd4+ {[%emt 0:00:16]} 40. Qf2 {[%emt 0:01:57]} Qd1+ {[%emt 0:05:28]} 41. Kh2 {[%emt 0:00:48]} f4 {[%emt 0:00:28]} 42. Rg5 {[%emt 0:01:08]} Ne4 {[%emt 0:00:28]} 43. Qb2 {[%emt 0:01:07]} Nxg5 {[%emt 0:00:55]} 44. Qxe5+ {[%emt 0:00:02]} f6 {[%emt 0:00:54]} 45. Qe7+ {[%emt 0:00:27]} Nf7 {[%emt 0:00:21]} 46. d7 {[%emt 0:00:10]} Qd2 {[%emt 0:00:34]} 47. Kh1 {[%emt 0:01:10]} g5 {[%emt 0:00:19]} 48. c5 {[%emt 0:00:41]} bxc5 {[%emt 0:00:04]} 49. bxc5 {[%emt 0:00:03]} g4 {[%emt 0:00:02]} 50. Kh2 {[%emt 0:01:02]} 0-1